[Event "DEN-ch KK 2020"]
[Site "Svendborg"]
[Date "2020.10.15"]
[Round "4.10"]
[White "Rossen, Claus"]
[Black "Nilssen, Ellen Fredericia"]
[Result "0-1"]
[ECO "C15"]
[WhiteElo "2099"]
[BlackElo "2209"]
[Annotator "ChessBase"]
[PlyCount "62"]
[EventDate "2020.10.09"]
[EventType "tourn"]
[EventCountry "DEN"]
[SourceTitle "playchess.com"]
[Source "ChessBase"]
[SourceQuality "1"]
[TimeControl "40/5400+30:1800+30"]

1. e4 {[%emt 0:00:00]} e6 {[%emt 0:00:00]} 2. d4 {[%emt 0:00:00]} d5 {[%emt 0:00:00]} 3. Nc3 {[%emt 0:00:00]} Bb4 {[%emt 0:00:03]} 4. a3 {[%emt 0:06:55]} Bxc3+ {[%emt 0:00:10]} 5. bxc3 {[%emt 0:00:03]} dxe4 {[%emt 0:00:13]} 6. Qg4 {[%emt 0:00:05]} Nf6 {[%emt 0:00:13]} 7. Qxg7 {[%emt 0:00:05]} Rg8 {[%emt 0:00:09]} 8. Qh6 {[%emt 0:00:04]} Bd7 {[%emt 0:00:12]} 9. Bb2 {[%emt 0:01:00]} c5 {[%emt 0:04:16]} 10. O-O-O {[%emt 0:01:59]} Bc6 {[%emt 0:06:54]} 11. f3 {[%emt 0:04:10]} Nbd7 {[%emt 0:03:24]} 12. c4 {[%emt 0:11:06]} Rg6 {[%emt 0:06:24]} 13. Qe3 {[%emt 0:01:02]} cxd4 {[%emt 0:01:12]} 14. Bxd4 {[%emt 0:01:48]} Qa5 {[%emt 0:04:51]} 15. fxe4 {[%emt 0:13:01]} Ng4 {[%emt 0:04:00]} 16. Qd2 {[%emt 0:13:28]} Qxa3+ {[%emt 0:01:46]} 17. Bb2 {[%emt 0:00:09]} Qe3 {[%emt 0:00:36]} 18. Bd3 {[%emt 0:02:44]} Nc5 {[%emt 0:07:27]} 19. h3 {[%emt 0:06:05]} Qxd2+ {[%emt 0:02:23]} 20. Rxd2 {[%emt 0:00:12]} Nh6 {[%emt 0:02:37]} 21. Nf3 {[%emt 0:11:15]} Bxe4 {[%emt 0:05:58]} 22. Ne5 {[%emt 0:07:54]} Bxd3 {[%emt 0:03:21]} 23. Bd4 {[%emt 0:12:19]} Rg5 {[%emt 0:05:06]} 24. Nf3 {[%emt 0:01:36]} Rf5 {[%emt 0:03:03]} 25. Bxc5 {[%emt 0:01:43]} Bxc4 {[%emt 0:02:13]} 26. Be3 {[%emt 0:00:21]} Ra5 {[%emt 0:00:22]} 27. Kb2 {[%emt 0:01:16]} Nf5 {[%emt 0:00:23]} 28. Bf2 {[%emt 0:00:22]} Bd5 {[%emt 0:00:35]} 29. Re1 {[%emt 0:01:31]} Nd6 {[%emt 0:01:48]} 30. Rd4 {[%emt 0:00:46]} Rc8 {[%emt 0:03:17]} 31. Rb1 {[%emt 0:01:13]} Ra2+ {[%emt 0:00:16]} 0-1

[Event "DEN-ch KK 2020"]
[Site "Svendborg"]
[Date "2020.10.15"]
[Round "4.11"]
[White "Hald Falkesgaard, Jeppe"]
[Black "Easwaralingam, Adesh"]
[Result "1/2-1/2"]
[ECO "E44"]
[WhiteElo "1984"]
[BlackElo "2110"]
[Annotator "ChessBase"]
[PlyCount "97"]
[EventDate "2020.10.09"]
[EventType "tourn"]
[EventCountry "DEN"]
[SourceTitle "playchess.com"]
[Source "ChessBase"]
[SourceQuality "1"]
[TimeControl "40/5400+30:1800+30"]

1. d4 {[%emt 0:00:00]} Nf6 {[%emt 0:00:00]} 2. c4 {[%emt 0:00:00]} e6 {[%emt 0:00:00]} 3. Nc3 {[%emt 0:00:00]} Bb4 {[%emt 0:00:00]} 4. e3 {[%emt 0:00:00]} b6 {[%emt 0:00:00]} 5. Nge2 {[%emt 0:00:14]} Bb7 {[%emt 0:00:00]} 6. a3 {[%emt 0:00:31]} Be7 {[%emt 0:01:11]} 7. Nf4 {[%emt 0:01:10]} d6 {[%emt 0:01:29]} 8. Bd3 {[%emt 0:01:26]} g5 {[%emt 0:11:24]} 9. Nh5 {[%emt 0:02:35]} Nxh5 {[%emt 0:01:38]} 10. Qxh5 {[%emt 0:00:07]} Nd7 {[%emt 0:01:07]} 11. e4 {[%emt 0:07:29]} Bf6 {[%emt 0:15:20]} 12. Be3 {[%emt 0:02:32]} a6 {[%emt 0:03:06]} 13. O-O {[%emt 0:08:16]} Qe7 {[%emt 0:01:01]} 14. Rac1 {[%emt 0:02:15]} c5 {[%emt 0:01:57]} 15. d5 {[%emt 0:04:05]} O-O-O {[%emt 0:04:24]} 16. Na4 {[%emt 0:04:24]} Qe8 {[%emt 0:03:50]} 17. Qd1 {[%emt 0:06:15]} Kb8 {[%emt 0:08:13]} 18. b4 {[%emt 0:04:18]} Ka7 {[%emt 0:00:43]} 19. Rb1 {[%emt 0:03:16]} Rc8 {[%emt 0:04:00]} 20. Qb3 {[%emt 0:05:27]} Qd8 {[%emt 0:00:22]} 21. Nc3 {[%emt 0:01:49]} Qc7 {[%emt 0:04:02]} 22. Be2 {[%emt 0:07:49]} h5 {[%emt 0:02:03]} 23. Na4 {[%emt 0:13:10]} g4 {[%emt 0:06:49]} 24. bxc5 {[%emt 0:01:28]} dxc5 {[%emt 0:01:14]} 25. Rfd1 {[%emt 0:03:17]} Rhe8 {[%emt 0:01:51]} 26. dxe6 {[%emt 0:02:51]} Rxe6 {[%emt 0:00:42]} 27. Rxd7 {[%emt 0:00:59]} Qxd7 {[%emt 0:00:06]} 28. Nxb6 {[%emt 0:00:08]} Qc7 {[%emt 0:00:46]} 29. Nxc8+ {[%emt 0:00:09]} Qxc8 {[%emt 0:00:21]} 30. Bxc5+ {[%emt 0:01:51]} Ka8 {[%emt 0:00:06]} 31. Be3 {[%emt 0:00:23]} Bxe4 {[%emt 0:00:50]} 32. Rd1 {[%emt 0:00:38]} Qc6 {[%emt 0:02:59]} 33. Bf4 {[%emt 0:01:41]} Qb7 {[%emt 0:04:52]} 34. Qxb7+ {[%emt 0:00:32]} Kxb7 {[%emt 0:00:07]} 35. c5 {[%emt 0:03:13]} Be5 {[%emt 0:08:17]} 36. Bxe5 {[%emt 0:01:43]} Rxe5 {[%emt 0:00:08]} 37. Rc1 {[%emt 0:00:09]} f5 {[%emt 0:06:15]} 38. g3 {[%emt 0:01:27]} Re6 {[%emt 0:01:09]} 39. Bc4 {[%emt 0:00:56]} Rf6 {[%emt 0:00:43]} 40. Bb3 {[%emt 0:01:44]} Kc7 {[%emt 0:03:51]} 41. Kf1 {[%emt 0:32:48]} f4 {[%emt 0:30:34]} 42. Re1 {[%emt 0:03:19]} Bd3+ {[%emt 0:01:43]} 43. Kg1 {[%emt 0:00:08]} fxg3 {[%emt 0:00:32]} 44. hxg3 {[%emt 0:00:12]} Rf5 {[%emt 0:00:00]} 45. Rc1 {[%emt 0:00:00]} Be4 {[%emt 0:00:00]} 46. Re1 {[%emt 0:00:00]} Bf3 {[%emt 0:00:00]} 47. Rc1 {[%emt 0:00:00]} Be4 {[%emt 0:00:00]} 48. Re1 {[%emt 0:00:00]} Bf3 {[%emt 0:00:00]} 49. Rc1 {[%emt 0:00:00]} 1/2-1/2

[Event "DEN-ch KK 2020"]
[Site "Svendborg"]
[Date "2020.10.15"]
[Round "4.12"]
[White "Holm, Filip"]
[Black "Steffensen, Elena"]
[Result "0-1"]
[ECO "B06"]
[WhiteElo "2210"]
[BlackElo "2081"]
[Annotator "NA"]
[PlyCount "72"]
[EventDate "2020.10.09"]
[EventType "tourn"]
[EventCountry "DEN"]
[SourceTitle "playchess.com"]
[Source "ChessBase"]
[SourceQuality "1"]
[TimeControl "40/5400+30:1800+30"]

1. e4 {[%emt 0:00:00]} g6 {[%emt 0:00:00]} 2. d4 {[%emt 0:00:00]} Bg7 {[%emt 0:00:00]} 3. Nc3 {[%emt 0:00:07]} c6 {[%emt 0:00:00]} 4. Be3 {[%emt 0:00:31]} d6 {[%emt 0:00:00]} 5. f4 {[%emt 0:00:53]} h5 {[%emt 0:02:02]} 6. Nf3 {[%emt 0:01:51]} Bg4 {[%emt 0:03:39]} 7. h3 {[%emt 0:01:48]} Bxf3 {[%emt 0:00:08]} 8. Qxf3 {[%emt 0:00:06]} Qb6 {[%emt 0:05:51]} 9. O-O-O {[%emt 0:02:46]} Nd7 {[%emt 0:03:30]} 10. g4 {[%emt 0:09:59]} hxg4 {[%emt 0:03:55]} 11. hxg4 {[%emt 0:00:25]} Rxh1 {[%emt 0:00:40]} 12. Qxh1 {[%emt 0:00:05]} Ngf6 {[%emt 0:01:13]} 13. Bh3 {[%emt 0:08:03]} O-O-O {[%emt 0:00:17]} 14. g5 {[%emt 0:01:21]} Ne8 {[%emt 0:00:53]} 15. Qf3 {[%emt 0:18:50]} Kb8 $18 {[%emt 0:05:32]} 16. f5 {[%emt 0:07:31]} gxf5 {[%emt 0:01:19]} 17. Qxf5 {[%emt 0:01:32]} Ne5 {[%emt 0:02:01]} 18. Bg1 {[%emt 0:13:58]} Nc4 {[%emt 0:02:08]} 19. b3 {[%emt 0:02:04]} Qb4 {[%emt 0:01:52]} 20. Nb1 {[%emt 0:01:52]} Na5 {[%emt 0:04:07]} 21. Qxf7 {[%emt 0:01:40]} c5 {[%emt 0:01:24]} 22. a3 {[%emt 0:05:40]} Qb5 {[%emt 0:02:04]} 23. dxc5 {[%emt 0:01:00]} Qe2 {[%emt 0:01:02]} 24. Be6 {[%emt 0:04:20]} Qxe4 {[%emt 0:01:08]} 25. b4 {[%emt 0:01:34]} Nc6 {[%emt 0:02:58]} 26. b5 {[%emt 0:02:11]} Qe5 {[%emt 0:01:11]} 27. c3 {[%emt 0:00:54]} Qxg5+ {[%emt 0:01:28]} 28. Kb2 {[%emt 0:01:51]} Ne5 {[%emt 0:02:20]} 29. Qf2 {[%emt 0:00:46]} d5 {[%emt 0:03:54]} 30. Bxd5 {[%emt 0:02:41]} Rxd5 {[%emt 0:00:50]} 31. c6 {[%emt 0:03:31]} b6 {[%emt 0:03:19]} 32. Rxd5 {[%emt 0:01:31]} Nc4+ {[%emt 0:00:12]} 33. Ka1 {[%emt 0:00:05]} Qxd5 {[%emt 0:00:23]} 34. Bh2+ {[%emt 0:00:41]} Be5 {[%emt 0:01:52]} 35. Bxe5+ {[%emt 0:02:56]} Qxe5 {[%emt 0:00:38]} 36. Qf8 {[%emt 0:00:59]} Ncd6 {[%emt 0:00:23]} 0-1

[Event "DEN-ch KK 2020"]
[Site "Svendborg"]
[Date "2020.10.16"]
[Round "5.1"]
[White "Rewitz, Poul"]
[Black "Carstensen, Jacob"]
[Result "0-1"]
[ECO "A28"]
[WhiteElo "2222"]
[BlackElo "2350"]
[Annotator "ChessBase"]
[PlyCount "112"]
[EventDate "2020.10.09"]
[EventType "tourn"]
[EventCountry "DEN"]
[SourceTitle "playchess.com"]
[Source "ChessBase"]
[SourceQuality "1"]
[TimeControl "40/5400+30:1800+30"]

1. c4 {[%emt 0:00:09]} e5 {[%emt 0:00:00]} 2. Nc3 {[%emt 0:00:19]} Nf6 {[%emt 0:00:00]} 3. Nf3 {[%emt 0:00:22]} Nc6 {[%emt 0:00:14]} 4. d4 {[%emt 0:00:29]} exd4 {[%emt 0:00:10]} 5. Nxd4 {[%emt 0:00:14]} Bb4 {[%emt 0:00:07]} 6. Nxc6 {[%emt 0:06:22]} Bxc3+ {[%emt 0:00:43]} 7. bxc3 {[%emt 0:00:07]} bxc6 {[%emt 0:00:03]} 8. Bg5 {[%emt 0:01:48]} h6 {[%emt 0:00:06]} 9. Bxf6 {[%emt 0:05:40]} Qxf6 {[%emt 0:00:06]} 10. Qd4 {[%emt 0:00:40]} d6 {[%emt 0:09:41]} 11. Qxf6 {[%emt 0:03:54]} gxf6 {[%emt 0:00:25]} 12. g3 {[%emt 0:09:05]} Rb8 {[%emt 0:01:08]} 13. e3 {[%emt 0:09:18]} Bf5 {[%emt 0:01:04]} 14. Bg2 {[%emt 0:02:42]} c5 {[%emt 0:00:44]} 15. Bc6+ {[%emt 0:02:33]} Ke7 {[%emt 0:00:28]} 16. Ke2 {[%emt 0:13:26]} Rb2+ {[%emt 0:02:58]} 17. Kf3 {[%emt 0:01:29]} Bd3 {[%emt 0:00:31]} 18. Bd5 {[%emt 0:08:17]} Rhb8 {[%emt 0:05:20]} 19. Kg2 {[%emt 0:09:37]} R8b6 {[%emt 0:00:55]} 20. a4 {[%emt 0:02:24]} a5 {[%emt 0:06:44]} 21. h4 {[%emt 0:03:00]} c6 {[%emt 0:01:23]} 22. Bf3 {[%emt 0:00:13]} Bxc4 {[%emt 0:00:05]} 23. h5 {[%emt 0:01:10]} Rd2 {[%emt 0:05:30]} 24. Rhb1 {[%emt 0:02:35]} Rdb2 {[%emt 0:11:18]} 25. Rxb2 {[%emt 0:00:58]} Rxb2 {[%emt 0:00:04]} 26. Bxc6 {[%emt 0:00:15]} f5 {[%emt 0:00:17]} 27. e4 {[%emt 0:08:29]} fxe4 {[%emt 0:02:23]} 28. Bxe4 {[%emt 0:00:05]} d5 {[%emt 0:00:22]} 29. Bf3 {[%emt 0:00:28]} Rc2 {[%emt 0:03:09]} 30. Re1+ {[%emt 0:02:20]} Kf6 {[%emt 0:00:20]} 31. Re3 {[%emt 0:00:33]} Ra2 {[%emt 0:09:24]} 32. Re8 {[%emt 0:00:16]} Rxa4 {[%emt 0:01:36]} 33. Rc8 {[%emt 0:00:13]} d4 {[%emt 0:01:22]} 34. cxd4 {[%emt 0:03:15]} cxd4 {[%emt 0:00:07]} 35. Be4 {[%emt 0:01:21]} Rb4 {[%emt 0:01:44]} 36. f4 {[%emt 0:01:09]} Rb2+ {[%emt 0:03:41]} 37. Kg1 {[%emt 0:00:09]} Re2 {[%emt 0:03:30]} 38. Rxc4 {[%emt 0:00:49]} Rxe4 {[%emt 0:00:05]} 39. Kf2 {[%emt 0:00:38]} Kf5 {[%emt 0:01:28]} 40. Ra4 {[%emt 0:01:39]} d3 {[%emt 0:04:08]} 41. Rxa5+ {[%emt 0:04:35]} Kg4 {[%emt 0:00:40]} 42. Rd5 {[%emt 0:07:12]} Re2+ {[%emt 0:00:30]} 43. Kf1 {[%emt 0:00:48]} Re3 {[%emt 0:00:05]} 44. f5 {[%emt 0:01:35]} Rf3+ {[%emt 0:04:09]} 45. Ke1 {[%emt 0:00:49]} f6 {[%emt 0:00:42]} 46. Rd4+ {[%emt 0:08:22]} Kxg3 {[%emt 0:00:51]} 47. Kd2 {[%emt 0:00:31]} Rxf5 {[%emt 0:00:10]} 48. Kxd3 {[%emt 0:01:16]} Rxh5 {[%emt 0:00:23]} 49. Ke2 {[%emt 0:00:42]} Rf5 {[%emt 0:01:40]} 50. Rd3+ {[%emt 0:00:51]} Kg2 {[%emt 0:00:15]} 51. Rd6 {[%emt 0:03:05]} h5 {[%emt 0:00:35]} 52. Ke3 {[%emt 0:00:30]} h4 {[%emt 0:00:07]} 53. Ke4 {[%emt 0:03:29]} Rf2 {[%emt 0:00:15]} 54. Rd8 {[%emt 0:00:19]} f5+ {[%emt 0:01:04]} 55. Ke5 {[%emt 0:00:31]} h3 {[%emt 0:00:06]} 56. Rg8+ {[%emt 0:00:14]} Kf1 {[%emt 0:00:07]} 0-1

[Event "DEN-ch KK 2020"]
[Site "Svendborg"]
[Date "2020.10.16"]
[Round "5.2"]
[White "Thorsbro, Peter"]
[Black "Haubro, Sigfred"]
[Result "1/2-1/2"]
[ECO "A40"]
[WhiteElo "2165"]
[BlackElo "2163"]
[Annotator "NA"]
[PlyCount "90"]
[EventDate "2020.10.09"]
[EventType "tourn"]
[EventCountry "DEN"]
[SourceTitle "playchess.com"]
[Source "ChessBase"]
[SourceQuality "1"]
[TimeControl "40/5400+30:1800+30"]

1. d4 {[%emt 0:00:00]} e6 {[%emt 0:00:00]} 2. Bf4 {[%emt 0:00:00]} f5 {[%emt 0:00:00]} 3. e3 {[%emt 0:00:22]} Nf6 {[%emt 0:00:00]} 4. Nf3 {[%emt 0:00:12]} Be7 {[%emt 0:00:42]} 5. Bd3 {[%emt 0:00:21]} b6 {[%emt 0:00:18]} 6. h3 {[%emt 0:03:29]} O-O {[%emt 0:05:23]} 7. c4 {[%emt 0:06:46]} Bb7 {[%emt 0:02:25]} 8. Nc3 {[%emt 0:00:04]} Ne4 {[%emt 0:10:12]} 9. O-O {[%emt 0:09:17]} d6 {[%emt 0:05:44]} 10. Bxe4 {[%emt 0:06:28]} fxe4 {[%emt 0:00:33]} 11. Nd2 {[%emt 0:00:02]} d5 {[%emt 0:00:48]} 12. cxd5 {[%emt 0:03:38]} exd5 {[%emt 0:00:23]} 13. Qb3 {[%emt 0:00:19]} Kh8 {[%emt 0:02:38]} 14. Rfc1 {[%emt 0:21:14]} c6 {[%emt 0:13:03]} 15. Qd1 {[%emt 0:11:20]} Nd7 $11 {[%emt 0:09:03]} 16. Nf1 {[%emt 0:00:48]} Nf6 {[%emt 0:01:54]} 17. Ng3 {[%emt 0:00:13]} Bc8 {[%emt 0:06:17]} 18. Nce2 {[%emt 0:01:48]} Bd7 {[%emt 0:00:13]} 19. Be5 {[%emt 0:00:12]} Qe8 {[%emt 0:03:46]} 20. Nf4 {[%emt 0:01:39]} Qf7 {[%emt 0:06:35]} 21. Rc2 {[%emt 0:02:27]} Rac8 {[%emt 0:07:01]} 22. Qe2 {[%emt 0:02:27]} c5 {[%emt 0:04:27]} 23. dxc5 {[%emt 0:03:02]} bxc5 {[%emt 0:00:11]} 24. Rd1 {[%emt 0:01:53]} Bc6 {[%emt 0:05:54]} 25. Nf5 {[%emt 0:03:13]} Rfd8 {[%emt 0:01:00]} 26. Qa6 {[%emt 0:03:24]} Bf8 {[%emt 0:00:38]} 27. Nd6 {[%emt 0:03:38]} Bxd6 {[%emt 0:03:17]} 28. Bxd6 {[%emt 0:00:03]} Bb7 {[%emt 0:00:30]} 29. Qxa7 {[%emt 0:00:26]} Rxd6 {[%emt 0:00:34]} 30. Rxc5 {[%emt 0:00:14]} Rxc5 {[%emt 0:00:57]} 31. Qxc5 {[%emt 0:00:09]} Qd7 {[%emt 0:00:30]} 32. Ne2 {[%emt 0:00:47]} Qc6 {[%emt 0:01:12]} 33. Qb4 {[%emt 0:00:27]} Qb6 {[%emt 0:01:55]} 34. Qc3 {[%emt 0:00:36]} h6 {[%emt 0:01:43]} 35. Nd4 {[%emt 0:00:16]} Kh7 {[%emt 0:00:35]} 36. b4 {[%emt 0:01:31]} Rd8 {[%emt 0:01:39]} 37. a4 {[%emt 0:02:51]} Rc8 {[%emt 0:00:17]} 38. Qa3 {[%emt 0:00:30]} Qd6 {[%emt 0:01:36]} 39. a5 {[%emt 0:03:09]} Rc4 {[%emt 0:01:38]} 40. Rb1 {[%emt 0:00:19]} Nd7 {[%emt 0:01:50]} 41. Qa4 {[%emt 0:32:37]} Ne5 {[%emt 0:31:44]} 42. Qe8 {[%emt 0:02:38]} Rc8 {[%emt 0:00:00]} 43. Qa4 {[%emt 0:00:00]} Rc4 {[%emt 0:00:00]} 44. Qe8 {[%emt 0:00:00]} Rc8 {[%emt 0:00:00]} 45. Qa4 {[%emt 0:00:00]} Rc4 {[%emt 0:00:00]} 1/2-1/2

[Event "DEN-ch KK 2020"]
[Site "Svendborg"]
[Date "2020.10.16"]
[Round "5.3"]
[White "Georgescu, Lena"]
[Black "Thuesen, Mogens"]
[Result "1/2-1/2"]
[ECO "C16"]
[WhiteElo "2276"]
[BlackElo "2210"]
[Annotator "ChessBase"]
[PlyCount "39"]
[EventDate "2020.10.09"]
[EventType "tourn"]
[EventCountry "DEN"]
[SourceTitle "playchess.com"]
[Source "ChessBase"]
[SourceQuality "1"]
[TimeControl "40/5400+30:1800+30"]

1. e4 {[%emt 0:00:00]} e6 {[%emt 0:00:09]} 2. d4 {[%emt 0:00:00]} d5 {[%emt 0:00:05]} 3. Nc3 {[%emt 0:00:00]} Bb4 {[%emt 0:00:07]} 4. e5 {[%emt 0:00:00]} Ne7 {[%emt 0:00:25]} 5. Bd2 {[%emt 0:00:03]} b6 {[%emt 0:12:04]} 6. Qg4 {[%emt 0:00:14]} Nf5 {[%emt 0:01:20]} 7. Bd3 {[%emt 0:00:50]} h5 {[%emt 0:01:03]} 8. Qf4 {[%emt 0:00:18]} g5 {[%emt 0:04:49]} 9. Qxg5 {[%emt 0:00:07]} Qxg5 {[%emt 0:00:07]} 10. Bxg5 {[%emt 0:00:04]} Nxd4 {[%emt 0:00:37]} 11. O-O-O {[%emt 0:00:31]} Be7 {[%emt 0:04:40]} 12. h4 {[%emt 0:00:25]} c5 {[%emt 0:04:50]} 13. f4 {[%emt 0:06:23]} Ba6 {[%emt 0:07:23]} 14. Bxa6 {[%emt 0:07:30]} Nxa6 {[%emt 0:00:14]} 15. Nge2 {[%emt 0:01:48]} Nxe2+ {[%emt 0:09:43]} 16. Nxe2 {[%emt 0:00:03]} Nb4 {[%emt 0:00:22]} 17. c3 {[%emt 0:12:34]} Nc6 {[%emt 0:00:27]} 18. b3 {[%emt 0:04:31]} Kf8 {[%emt 0:06:38]} 19. Rh3 {[%emt 0:01:16]} b5 {[%emt 0:04:08]} 20. Kb2 {[%emt 0:05:09]} 1/2-1/2

[Event "DEN-ch KK 2020"]
[Site "Svendborg"]
[Date "2020.10.16"]
[Round "5.4"]
[White "Kolbak, Jens"]
[Black "Jaksland, Tim"]
[Result "1/2-1/2"]
[ECO "D38"]
[WhiteElo "2114"]
[BlackElo "2247"]
[Annotator "ChessBase"]
[PlyCount "27"]
[EventDate "2020.10.09"]
[EventType "tourn"]
[EventCountry "DEN"]
[SourceTitle "playchess.com"]
[Source "ChessBase"]
[SourceQuality "1"]
[TimeControl "40/5400+30:1800+30"]

1. Nf3 {[%emt 0:00:00]} Nf6 {[%emt 0:02:28]} 2. c4 {[%emt 0:00:17]} e6 {[%emt 0:01:26]} 3. Nc3 {[%emt 0:02:47]} d5 {[%emt 0:01:49]} 4. d4 {[%emt 0:01:12]} Bb4 {[%emt 0:01:08]} 5. e3 {[%emt 0:03:37]} O-O {[%emt 0:02:08]} 6. Bd3 {[%emt 0:02:04]} dxc4 {[%emt 0:04:32]} 7. Bxc4 {[%emt 0:00:08]} b6 {[%emt 0:04:25]} 8. O-O {[%emt 0:00:59]} Bb7 {[%emt 0:01:32]} 9. Qe2 {[%emt 0:04:14]} Nbd7 {[%emt 0:07:14]} 10. Ba6 {[%emt 0:11:15]} Qc8 {[%emt 0:01:28]} 11. Bxb7 {[%emt 0:00:13]} Qxb7 {[%emt 0:00:04]} 12. Bd2 {[%emt 0:01:31]} Rfe8 {[%emt 0:03:44]} 13. Rac1 {[%emt 0:04:47]} Rac8 {[%emt 0:01:52]} 14. Ne4 {[%emt 0:11:30]} 1/2-1/2

[Event "DEN-ch KK 2020"]
[Site "Svendborg"]
[Date "2020.10.16"]
[Round "5.5"]
[White "Laursen, Niels Norskov"]
[Black "Nilssen, Ellen Fredericia"]
[Result "1-0"]
[ECO "C09"]
[WhiteElo "2247"]
[BlackElo "2209"]
[Annotator "ChessBase"]
[PlyCount "121"]
[EventDate "2020.10.09"]
[EventType "tourn"]
[EventCountry "DEN"]
[SourceTitle "playchess.com"]
[Source "ChessBase"]
[SourceQuality "1"]
[TimeControl "40/5400+30:1800+30"]

1. e4 {[%emt 0:00:00]} e6 {[%emt 0:00:00]} 2. d4 {[%emt 0:00:00]} d5 {[%emt 0:00:00]} 3. Nd2 {[%emt 0:00:00]} c5 {[%emt 0:00:00]} 4. Ngf3 {[%emt 0:00:34]} Nc6 {[%emt 0:00:00]} 5. exd5 {[%emt 0:00:25]} exd5 {[%emt 0:00:08]} 6. Bb5 {[%emt 0:01:42]} Qe7+ {[%emt 0:00:08]} 7. Be2 {[%emt 0:00:59]} Qc7 {[%emt 0:00:07]} 8. O-O {[%emt 0:01:03]} Nf6 {[%emt 0:00:05]} 9. Re1 {[%emt 0:01:13]} cxd4 {[%emt 0:00:08]} 10. Nb3 {[%emt 0:01:23]} Be7 {[%emt 0:00:09]} 11. Nbxd4 {[%emt 0:01:27]} O-O {[%emt 0:00:11]} 12. Bg5 {[%emt 0:02:29]} Re8 {[%emt 0:07:33]} 13. c3 {[%emt 0:07:47]} a6 {[%emt 0:02:39]} 14. h3 {[%emt 0:05:30]} Bd7 {[%emt 0:11:17]} 15. Bd3 {[%emt 0:08:18]} h6 {[%emt 0:09:29]} 16. Bh4 {[%emt 0:02:47]} Qb6 {[%emt 0:05:47]} 17. Qb3 {[%emt 0:03:28]} Qxb3 {[%emt 0:08:19]} 18. Nxb3 {[%emt 0:05:31]} Rad8 {[%emt 0:05:53]} 19. Nbd4 {[%emt 0:06:13]} Nxd4 {[%emt 0:05:26]} 20. Nxd4 {[%emt 0:00:52]} g5 {[%emt 0:00:30]} 21. Bg3 {[%emt 0:00:44]} Bc5 {[%emt 0:00:09]} 22. Nb3 {[%emt 0:02:40]} Bb6 {[%emt 0:02:16]} 23. Be5 {[%emt 0:01:05]} Ne4 {[%emt 0:05:07]} 24. Bd4 {[%emt 0:00:44]} Bxd4 {[%emt 0:02:12]} 25. Nxd4 {[%emt 0:02:13]} Nc5 {[%emt 0:03:49]} 26. Bc2 {[%emt 0:02:48]} Ba4 {[%emt 0:05:50]} 27. Bf5 {[%emt 0:01:25]} Bd7 {[%emt 0:02:14]} 28. Bxd7 {[%emt 0:03:11]} Nxd7 {[%emt 0:00:27]} 29. Nf5 {[%emt 0:01:55]} Ne5 {[%emt 0:04:20]} 30. Nxh6+ {[%emt 0:02:59]} Kg7 {[%emt 0:03:26]} 31. Nf5+ {[%emt 0:00:33]} Kg6 {[%emt 0:01:00]} 32. Ne3 {[%emt 0:04:55]} Nd3 {[%emt 0:02:31]} 33. Re2 {[%emt 0:02:18]} d4 {[%emt 0:06:53]} 34. cxd4 {[%emt 0:00:16]} Rxd4 {[%emt 0:00:08]} 35. Rd2 {[%emt 0:01:56]} Red8 {[%emt 0:03:33]} 36. Rad1 {[%emt 0:05:03]} f5 {[%emt 0:00:51]} 37. Nc2 {[%emt 0:07:46]} R4d7 {[%emt 0:03:58]} 38. Nb4 {[%emt 0:02:12]} Nc5 {[%emt 0:00:25]} 39. Rxd7 {[%emt 0:00:54]} Rxd7 {[%emt 0:00:10]} 40. Rxd7 {[%emt 0:00:28]} Nxd7 {[%emt 0:00:02]} 41. Nd3 {[%emt 0:35:37]} f4 {[%emt 0:05:32]} 42. Kf1 {[%emt 0:00:00]} Kf5 {[%emt 0:01:22]} 43. Ke2 {[%emt 0:00:00]} g4 {[%emt 0:01:15]} 44. hxg4+ {[%emt 0:00:00]} Kxg4 {[%emt 0:00:08]} 45. a3 {[%emt 0:00:00]} a5 {[%emt 0:05:26]} 46. Kd2 {[%emt 0:00:00]} f3 {[%emt 0:02:25]} 47. g3 {[%emt 0:00:00]} b5 {[%emt 0:02:17]} 48. Ke3 {[%emt 0:00:04]} a4 {[%emt 0:02:23]} 49. Ke4 {[%emt 0:03:00]} Nb6 {[%emt 0:00:47]} 50. Ne5+ {[%emt 0:00:52]} Kh5 {[%emt 0:01:42]} 51. Kxf3 {[%emt 0:00:51]} Kg5 {[%emt 0:02:13]} 52. Ke4 {[%emt 0:00:38]} Kf6 {[%emt 0:00:29]} 53. f4 {[%emt 0:00:50]} Ke6 {[%emt 0:00:06]} 54. g4 {[%emt 0:00:49]} Nd5 {[%emt 0:00:23]} 55. f5+ {[%emt 0:00:49]} Kd6 {[%emt 0:00:26]} 56. g5 {[%emt 0:01:14]} b4 {[%emt 0:00:31]} 57. axb4 {[%emt 0:01:08]} Nxb4 {[%emt 0:00:29]} 58. g6 {[%emt 0:01:03]} Nd5 {[%emt 0:00:35]} 59. Ng4 {[%emt 0:00:55]} Ne7 {[%emt 0:01:48]} 60. Nf6 {[%emt 0:01:02]} a3 {[%emt 0:01:07]} 61. bxa3 {[%emt 0:00:23]} 1-0

[Event "DEN-ch KK 2020"]
[Site "Svendborg"]
[Date "2020.10.16"]
[Round "5.6"]
[White "Kistrup, Nicolai"]
[Black "Nordenbaek, Jan"]
[Result "1-0"]
[ECO "E04"]
[WhiteElo "2128"]
[BlackElo "2238"]
[Annotator "ChessBase"]
[PlyCount "51"]
[EventDate "2020.10.09"]
[EventType "tourn"]
[EventCountry "DEN"]
[SourceTitle "playchess.com"]
[Source "ChessBase"]
[SourceQuality "1"]
[TimeControl "40/5400+30:1800+30"]

1. d4 {[%emt 0:00:00]} Nf6 {[%emt 0:00:21]} 2. c4 {[%emt 0:00:00]} e6 {[%emt 0:00:31]} 3. g3 {[%emt 0:00:33]} d5 {[%emt 0:01:17]} 4. Bg2 {[%emt 0:00:42]} dxc4 {[%emt 0:00:39]} 5. Nf3 {[%emt 0:04:38]} a6 {[%emt 0:01:12]} 6. O-O {[%emt 0:20:49]} Nc6 {[%emt 0:01:57]} 7. e3 {[%emt 0:03:14]} Rb8 {[%emt 0:00:23]} 8. Qe2 {[%emt 0:06:02]} b5 {[%emt 0:01:36]} 9. b3 {[%emt 0:00:51]} cxb3 {[%emt 0:02:25]} 10. axb3 {[%emt 0:01:28]} Bb7 {[%emt 0:05:52]} 11. Ne1 {[%emt 0:09:15]} Nb4 {[%emt 0:05:05]} 12. Bxb7 {[%emt 0:06:25]} Rxb7 {[%emt 0:00:08]} 13. Ba3 {[%emt 0:18:37]} Rb6 {[%emt 0:07:06]} 14. Bxb4 {[%emt 0:04:06]} Bxb4 {[%emt 0:00:05]} 15. Rxa6 {[%emt 0:04:05]} c6 {[%emt 0:00:03]} 16. Qa2 {[%emt 0:04:13]} O-O {[%emt 0:03:49]} 17. Nd3 {[%emt 0:00:33]} Nd5 {[%emt 0:09:44]} 18. Rc1 {[%emt 0:01:42]} Qd6 {[%emt 0:14:24]} 19. Rxb6 {[%emt 0:05:19]} Nxb6 {[%emt 0:00:04]} 20. Qa6 {[%emt 0:00:15]} Rb8 {[%emt 0:04:26]} 21. Nxb4 {[%emt 0:05:48]} Qxb4 {[%emt 0:00:10]} 22. Qa7 {[%emt 0:00:28]} Qf8 {[%emt 0:00:22]} 23. Rxc6 {[%emt 0:00:08]} Nd5 {[%emt 0:00:08]} 24. Nc3 {[%emt 0:01:20]} Nb4 {[%emt 0:02:20]} 25. Rc7 {[%emt 0:00:50]} Nd3 {[%emt 0:01:09]} 26. Rxf7 1-0